bitfinex/quotes_BTCUSD_20240905
["timestamp","ask_amount","ask_price","bid_price","bid_amount"]
[1725538982724,0.000815,56604.0,56603.0,2.11271278]
[1725538982959,0.000815,56604.0,56603.0,2.81938878]
[1725538983186,1.5e-05,56604.0,56603.0,2.46605078]
[1725538983437,1.5e-05,56604.0,56603.0,2.47605078]
[1725538983668,1.5e-05,56604.0,56603.0,2.23553196]
[1725538984384,1.5e-05,56604.0,56603.0,2.59086996]
[1725538984612,0.1774,56632.0,56631.0,0.529744]
[1725538984833,0.1744,56638.0,56631.0,0.353163]
[1725538985287,0.353105,56641.0,56622.0,0.134]
[1725538985288,0.176551,56641.0,56622.0,0.134]
[1725538985512,0.176544,56643.0,56635.0,0.353132]
[1725538985741,0.1763,56645.0,56637.0,0.176561]
[1725538985742,0.353082,56644.0,56637.0,0.176561]
[1725538985995,0.176561,56638.0,56632.0,0.353151]
[1725538986218,0.176555,56640.0,56635.0,0.176569]
[1725538986453,0.00873374,56637.0,56635.0,0.176569]
[1725538986679,0.176555,56640.0,56635.0,0.176569]
[1725538986867,0.0087329,56636.0,56632.0,0.353154]
[1725538987088,0.1763,56645.0,56625.0,0.353195]
[1725538987363,0.1763,56645.0,56623.0,0.17551096]
[1725538987364,0.00873206,56635.0,56615.0,0.1401]
[1725538987574,0.1388,56636.0,56624.0,0.176602]
[1725538987793,0.1388,56636.0,56621.0,0.353225]
[1725538987794,0.17658,56632.0,56622.0,0.353218]
[1725538988008,0.0087553,56635.0,56623.0,0.353211]
[1725538988240,0.00875193,56631.0,56630.0,0.529753]
[1725538988687,0.00875193,56631.0,56630.0,0.882922]
[1725538988903,0.352461,56638.0,56631.0,0.353162]
[1725538989108,0.1759,56638.0,56630.0,0.353169]
[1725538989327,0.1759,56638.0,56633.0,0.176574]
[1725538989553,0.176567,56636.0,56632.0,0.176578]
[1725538989776,0.00889097,56635.0,56630.0,0.353169]
[1725538989998,0.176572,56634.0,56627.0,0.353183]
[1725538990233,0.353145,56634.0,56616.0,0.36051882]
[1725538990458,0.00888506,56633.0,56617.0,0.17551096]
[1725538990676,0.00888506,56633.0,56613.0,0.1634]
[1725538990677,0.1421,56626.0,56613.0,0.1634]
[1725538991163,0.00887154,56625.0,56614.0,0.176634]
[1725538991381,0.00887154,56625.0,56612.0,0.353279]
[1725538991645,0.176616,56620.0,56612.0,0.353279]
[1725538991856,0.1421,56626.0,56608.0,0.1398]
[1725538992088,0.0088418,56619.0,56615.0,0.353262]
[1725538992310,0.176613,56621.0,56616.0,0.176625]
[1725538992581,0.00884039,56618.0,56617.0,0.176625]
[1725538992816,0.1659,56628.0,56626.0,0.176597]
[1725538993076,0.1659,56628.0,56625.0,0.176598]
[1725538993275,0.1659,56628.0,56626.0,0.176596]
[1725538993815,0.1388,56632.0,56628.0,0.176588]
[1725538994060,0.1679,56634.0,56629.0,0.00353153]
[1725538994284,0.1679,56634.0,56633.0,0.176575]
[1725538994751,0.1399,56638.0,56637.0,0.176563]
[1725538994992,0.175,56639.0,56638.0,0.176559]
[1725538995230,0.175,56639.0,56638.0,0.529678]
[1725538995666,0.175,56639.0,56638.0,0.176559]
[1725538995886,0.175,56639.0,56637.0,0.176562]
[1725538996106,0.175,56639.0,56638.0,0.176559]
[1725538996339,0.175,56639.0,56611.0,0.2995]
[1725538996340,0.323,56638.0,56611.0,0.2995]
[1725538996552,0.323,56638.0,56605.0,0.2995]
[1725538996553,0.176623,56618.0,56605.0,0.2995]
[1725538996775,0.1801,56624.0,56605.0,0.2995]
[1725538996776,0.1429,56621.0,56609.0,0.353298]
[1725538997000,0.176622,56618.0,56614.0,0.176633]
[1725538997225,0.319513,56621.0,56616.0,0.176626]
[1725538997451,0.1429,56621.0,56617.0,0.176624]
[1725538997675,0.319514,56621.0,56615.0,0.529887]
[1725538997923,0.1429,56621.0,56619.0,0.176618]
[1725538998146,0.1801,56624.0,56620.0,0.176616]
[1725538998381,0.353179,56629.0,56609.0,0.17551096]
[1725538998382,0.1671,56631.0,56618.0,0.353239]
[1725538998627,0.176595,56627.0,56622.0,0.529821]
[1725538998845,0.1671,56631.0,56615.0,0.353259]
[1725538999069,0.176587,56630.0,56618.0,0.353243]
[1725538999300,0.176587,56630.0,56625.0,0.176598]
[1725538999535,0.1671,56631.0,56625.0,0.35672963]
[1725538999758,0.1671,56631.0,56617.0,0.36051882]
[1725538999759,0.1671,56631.0,56630.0,0.529753]
[1725539000224,0.176569,56635.0,56631.0,0.17658]
[1725539000229,0.353057,56648.0,56636.0,0.353132]
[1725539000452,0.18,56643.0,56637.0,0.353125]
[1725539000681,0.18,56643.0,56633.0,0.176574]
[1725539000682,0.176563,56637.0,56633.0,0.176574]
[1725539000902,0.176563,56637.0,56624.0,0.3023856]
[1725539000903,0.176561,56638.0,56634.0,0.17657]
[1725539001375,0.18,56643.0,56628.0,0.35318]
[1725539001598,0.18,56643.0,56630.0,0.176583]
[1725539001599,0.176571,56635.0,56630.0,0.176583]
[1725539001822,0.176571,56635.0,56631.0,0.17658]
[1725539002257,0.353127,56637.0,56632.0,0.176578]
[1725539002479,0.176574,56634.0,56630.0,0.202584]
[1725539002712,0.176574,56634.0,56630.0,0.176584]
[1725539002931,0.176574,56634.0,56630.0,0.184584]
[1725539003159,0.353146,56634.0,56631.0,0.014]
[1725539003626,0.533089,56643.0,56632.0,0.005]
[1725539003859,0.533089,56643.0,56619.0,0.353234]
[1725539003860,0.001,56634.0,56633.0,0.529725]
[1725539004096,0.001,56634.0,56633.0,0.882875]
[1725539004323,0.002,56634.0,56632.0,0.176576]
[1725539005024,0.002,56634.0,56630.0,0.023]
[1725539005279,0.001,56634.0,56631.0,0.353162]
[1725539005521,0.002,56634.0,56631.0,0.014]
[1725539005973,0.178573,56634.0,56631.0,0.014]
[1725539006505,0.001,56634.0,56633.0,0.176575]
[1725539006740,0.001,56634.0,56631.0,0.01753141]
[1725539006741,0.353097,56642.0,56634.0,0.176569]
[1725539006967,0.176559,56639.0,56635.0,0.176566]
[1725539007422,0.17656,56638.0,56633.0,0.353145]
[1725539008137,0.177371,56639.0,56635.0,0.176568]
[1725539008358,0.000815,56639.0,56634.0,0.00353114]
[1725539008595,0.000815,56639.0,56633.0,0.367148]
[1725539008596,0.001,56634.0,56633.0,0.367148]
[1725539008834,0.001,56634.0,56633.0,0.014]
[1725539009070,0.176564,56637.0,56633.0,0.176573]
[1725539009548,0.176566,56636.0,56635.0,0.011]
[1725539009788,0.88283,56636.0,56635.0,0.011]
[1725539010018,0.88283,56636.0,56633.0,0.009]
[1725539010019,1.236004,56634.0,56633.0,0.009]
[1725539010270,0.882907,56631.0,56630.0,0.00163]
[1725539010509,1.6798556,56631.0,56630.0,0.00163]
[1725539010954,2.1330186,56631.0,56630.0,0.00163]
[1725539012079,2.3108186,56631.0,56630.0,0.00163]
[1725539013044,2.3468186,56631.0,56630.0,0.00263]
[1725539013715,3.0238186,56631.0,56630.0,0.00263]
[1725539013932,2.6616556,56631.0,56630.0,0.00163]
[1725539014360,2.6756556,56631.0,56630.0,0.00263]
[1725539015031,2.6756556,56631.0,56612.0,0.00353241]
[1725539015032,0.1375,56630.0,56612.0,0.00353241]
[1725539015258,0.1375,56613.0,56600.0,0.01327778]
[1725539015481,0.1375,56613.0,56598.0,0.176683]
[1725539015482,0.3023856,56608.0,56598.0,0.176683]
[1725539015702,0.176672,56602.0,56598.0,0.176683]
[1725539015938,0.3023856,56608.0,56595.0,0.52650515]
[1725539015939,0.353318,56607.0,56595.0,0.176692]
[1725539016166,0.1375,56613.0,56586.0,0.3032]
[1725539016167,0.353377,56597.0,56586.0,0.3032]
[1725539016390,0.353377,56597.0,56592.0,0.01328098]
[1725539016638,0.353377,56597.0,56590.0,0.176708]
[1725539016639,0.176697,56594.0,56590.0,0.176708]
[1725539016861,0.00776257,56596.0,56586.0,0.353441]
[1725539017095,0.485581,56597.0,56586.0,0.353441]
[1725539017338,0.17669,56596.0,56595.0,0.011]
[1725539017573,1.0556963,56596.0,56595.0,0.011]
[1725539018041,1.4090773,56596.0,56595.0,0.011]
[1725539018754,1.7114629,56596.0,56595.0,0.011]
[1725539018976,1.7114629,56596.0,56578.0,0.530236]
[1725539018977,0.353449,56586.0,56578.0,0.353491]
[1725539019255,0.176715,56588.0,56586.0,0.003]
[1725539019500,0.176719,56587.0,56586.0,0.003]
[1725539019729,0.176722,56586.0,56581.0,0.176736]
[1725539019956,0.176725,56585.0,56581.0,0.176736]
[1725539020186,0.353433,56588.0,56581.0,0.176736]
[1725539020187,0.176723,56586.0,56581.0,0.176736]
[1725539020418,0.176723,56586.0,56579.0,0.353488]
[1725539020419,0.0085857,56584.0,56583.0,0.176731]
[1725539020648,0.176719,56587.0,56582.0,0.176733]
[1725539020900,0.7357,56596.0,56583.0,0.176731]
[1725539020901,0.00858668,56584.0,56583.0,0.176731]
[1725539021131,1.0380856,56596.0,56583.0,0.176731]
[1725539021132,0.001,56586.0,56585.0,0.176725]
[1725539021383,0.001,56587.0,56586.0,0.530166]
[1725539021624,0.001,56587.0,56586.0,1.237054]
[1725539022335,0.4721,56596.0,56592.0,0.353405]
[1725539022557,0.4721,56596.0,56589.0,0.353419]
[1725539022787,0.4721,56596.0,56590.0,0.35694883]
[1725539022788,0.00859693,56595.0,56590.0,0.35694883]
[1725539023010,0.4721,56596.0,56589.0,0.353425]
[1725539023233,0.001,56587.0,56585.0,0.1652]
[1725539023466,0.001,56587.0,56586.0,0.190722]
[1725539023695,0.001,56587.0,56586.0,0.014]
[1725539023924,0.00955076,56587.0,56586.0,0.190722]
[1725539024155,0.00955076,56587.0,56582.0,0.353465]
[1725539024156,0.353401,56593.0,56587.0,0.176717]
[1725539024376,0.00855076,56587.0,56584.0,0.353456]
[1725539024629,0.001,56587.0,56586.0,0.530164]
[1725539024869,0.001,56587.0,56584.0,0.353456]
[1725539024870,0.354384,56596.0,56587.0,0.353437]
[1725539025107,0.354384,56596.0,56590.0,0.176709]
[1725539025108,0.176698,56594.0,56590.0,0.176709]
[1725539025354,0.354384,56596.0,56592.0,0.176701]
[1725539025355,0.001,56596.0,56592.0,0.176701]
[1725539025639,0.176692,56596.0,56592.0,0.176701]
[1725539025899,0.176687,56597.0,56592.0,0.176701]
[1725539026113,0.176687,56597.0,56593.0,0.176699]
[1725539026332,0.353363,56599.0,56591.0,0.35341]
[1725539026571,0.353363,56599.0,56593.0,0.176698]
[1725539026572,0.176688,56597.0,56593.0,0.176698]
[1725539026797,0.002,56596.0,56593.0,0.353398]
[1725539027046,0.002,56596.0,56594.0,0.176697]
[1725539027279,0.353363,56599.0,56592.0,0.358406]
[1725539027509,0.003,56597.0,56592.0,0.005]
[1725539027737,0.176691,56596.0,56592.0,0.005]
[1725539027971,0.6557426,56600.0,56594.0,0.353392]
[1725539028243,0.176684,56598.0,56594.0,0.176696]
[1725539028502,0.1641,56601.0,56593.0,0.004]
[1725539028503,0.530091,56594.0,56593.0,0.004]
[1725539029209,0.883485,56594.0,56593.0,0.016]
[1725539029446,0.883485,56594.0,56593.0,0.012]
[1725539029670,0.176706,56592.0,56587.0,0.176718]
[1725539030137,0.176706,56592.0,56583.0,0.353457]
[1725539030138,0.353414,56591.0,56583.0,0.176729]
[1725539030368,0.3023856,56592.0,56584.0,0.176726]
[1725539030617,0.176722,56586.0,56581.0,0.353475]
[1725539030851,0.176722,56586.0,56582.0,0.176733]
[1725539031080,0.3023856,56588.0,56582.0,0.176733]
[1725539031081,0.17672,56587.0,56583.0,0.176729]
[1725539031315,0.17672,56587.0,56582.0,0.353469]
[1725539031316,0.17672,56587.0,56584.0,0.176727]
[1725539031534,0.353417,56591.0,56583.0,0.353459]
[1725539031755,0.17672,56587.0,56582.0,0.176731]
[1725539032025,0.17672,56587.0,56583.0,0.17673]
[1725539032243,0.176716,56588.0,56584.0,0.176726]
[1725539032470,0.176717,56588.0,56582.0,0.353466]
[1725539032694,0.176717,56588.0,56584.0,0.178727]
[1725539032913,0.176717,56588.0,56584.0,0.002]
[1725539033141,0.176721,56587.0,56583.0,0.190728]
[1725539033361,0.176721,56587.0,56583.0,0.192728]
[1725539033362,0.177721,56587.0,56583.0,0.192728]
[1725539033589,0.177721,56587.0,56583.0,0.178728]
[1725539033811,0.348721,56587.0,56584.0,0.176728]
[1725539034029,0.172,56587.0,56582.0,0.014]
[1725539034297,0.49515,56585.0,56584.0,0.002]
[1725539034564,0.49515,56585.0,56582.0,0.014]
[1725539034565,0.530194,56583.0,56582.0,0.014]
[1725539034845,1.23712,56583.0,56582.0,0.014]
[1725539035066,0.883657,56583.0,56582.0,0.014]
[1725539035860,0.3023856,56584.0,56577.0,0.00162]
[1725539036053,0.176744,56579.0,56577.0,0.00162]
[1725539036280,0.176746,56579.0,56577.0,0.00162]
[1725539037231,0.353463,56583.0,56577.0,0.00162]
[1725539037466,0.176741,56580.0,56577.0,0.18037]
[1725539037697,0.001,56579.0,56577.0,0.01362]
[1725539038149,0.177744,56579.0,56577.0,0.01362]
[1725539038380,0.001,56579.0,56577.0,0.01362]
[1725539038609,0.001,56579.0,56577.0,0.19037]
[1725539038842,0.001,56579.0,56578.0,0.176747]
[1725539039084,0.176738,56581.0,56577.0,0.00162]
[1725539039326,0.176745,56579.0,56577.0,0.00762]
[1725539039556,0.530241,56578.0,56577.0,0.00762]
[1725539039800,0.883735,56578.0,56577.0,0.00162]
[1725539040036,1.416229,56578.0,56577.0,0.00162]
[1725539040280,1.42394426,56578.0,56577.0,0.00162]
[1725539040504,0.18671526,56578.0,56577.0,0.00162]
[1725539040731,0.1888694,56578.0,56577.0,0.00162]
[1725539040958,0.0098694,56578.0,56577.0,0.17837]
[1725539041227,0.0098694,56578.0,56577.0,0.00162]
[1725539041493,0.00986103,56578.0,56577.0,0.00162]
[1725539041730,0.18660803,56578.0,56577.0,0.00162]
[1725539041991,0.883735,56578.0,56577.0,0.00162]
[1725539042218,0.54010601,56578.0,56577.0,0.01262]
[1725539042448,0.89460001,56578.0,56577.0,0.01462]
[1725539042745,1.67189401,56578.0,56577.0,0.01462]
[1725539043245,1.67089401,56578.0,56577.0,0.00162]
[1725539043744,1.67289401,56578.0,56577.0,0.00762]
[1725539044254,1.67289401,56578.0,56577.0,0.00745674]
[1725539044740,2.02638801,56578.0,56577.0,0.00745674]
[1725539044975,1.237316,56574.0,56573.0,0.001632]
[1725539045240,0.4791946,56558.0,56557.0,0.52813515]
[1725539045503,0.53025,56558.0,56557.0,0.52813515]
[1725539045742,0.54007493,56558.0,56557.0,0.17828157]
[1725539046437,0.54007493,56558.0,56551.0,0.353662]
[1725539046656,0.54007493,56558.0,56552.0,0.176825]
[1725539046897,0.54007493,56558.0,56554.0,0.17665666]
[1725539047130,0.54007493,56558.0,56552.0,0.176825]
[1725539047131,0.176813,56557.0,56552.0,0.176825]
[1725539047410,0.17682,56555.0,56551.0,0.17683]
[1725539047660,0.176832,56551.0,56546.0,0.001632]
[1725539047890,0.3023856,56554.0,56547.0,0.353686]
[1725539047891,0.84243579,56554.0,56547.0,0.353686]
[1725539048138,0.84243579,56554.0,56549.0,0.530512]
[1725539048139,0.00979524,56550.0,56549.0,0.530512]
[1725539048609,0.53025,56554.0,56553.0,0.176825]
[1725539048836,0.53025,56554.0,56553.0,0.530475]
[1725539049102,0.176825,56553.0,56552.0,0.005]
[1725539049344,0.9627356,56554.0,56552.0,0.005]
[1725539049584,0.9627356,56554.0,56549.0,0.176836]
[1725539049585,0.176827,56553.0,56549.0,0.176836]
[1725539049818,0.001,56550.0,56549.0,0.005]
[1725539050063,0.001,56550.0,56549.0,0.181837]
[1725539050289,0.176826,56553.0,56550.0,0.176834]
[1725539050526,0.53125,56554.0,56546.0,0.001632]
[1725539050527,0.8849,56554.0,56546.0,0.001632]
[1725539050755,0.8849,56554.0,56550.0,0.176833]
[1725539050756,0.708073,56554.0,56550.0,0.176833]
[1725539050998,0.53125,56554.0,56553.0,0.176825]
[1725539051335,0.53125,56554.0,56553.0,1.406975]
[1725539051579,0.53125,56554.0,56553.0,0.176825]
[1725539051836,0.53125,56554.0,56553.0,0.530475]
[1725539052069,0.53125,56554.0,56553.0,0.884125]
[1725539052569,0.53125,56554.0,56553.0,1.237775]
[1725539052570,0.53025,56554.0,56553.0,1.237775]
[1725539053038,0.53025,56554.0,56553.0,0.176825]
[1725539053277,0.53125,56554.0,56553.0,0.176825]
[1725539053512,0.53125,56554.0,56553.0,0.884125]
[1725539053733,0.53125,56554.0,56553.0,0.530475]
[1725539053963,0.53225,56554.0,56553.0,0.541475]
[1725539054428,0.53225,56554.0,56553.0,0.011]
[1725539054654,0.53225,56554.0,56553.0,0.536475]
[1725539054884,0.53225,56554.0,56553.0,1.243775]
[1725539055132,0.53225,56554.0,56553.0,1.597425]
[1725539055372,0.30415332,56554.0,56553.0,1.597425]
[1725539055596,0.30215332,56554.0,56553.0,2.06583596]
[1725539055851,0.30315332,56554.0,56553.0,2.54248596]
[1725539056079,0.002,56554.0,56553.0,2.55348596]
[1725539056308,0.002,56554.0,56553.0,2.55548596]
[1725539056538,0.002,56554.0,56553.0,2.56877396]
[1725539056733,0.52650515,56577.0,56569.0,0.1735]
[1725539056992,0.52650515,56577.0,56575.0,0.176754]
[1725539057215,0.176747,56578.0,56572.0,0.35353]
[1725539057458,0.353524,56574.0,56562.0,0.1395]
[1725539057733,0.353495,56578.0,56554.0,0.52650515]
[1725539057734,0.176769,56571.0,56567.0,0.17678]
[1725539057969,0.3023856,56568.0,56553.0,0.00163]
[1725539058215,0.6169856,56572.0,56558.0,0.52650515]
[1725539058461,0.6169856,56572.0,56566.0,0.176784]
[1725539058462,0.176773,56570.0,56566.0,0.176784]
[1725539058680,0.6169856,56572.0,56553.0,0.00163]
[1725539058930,0.176801,56561.0,56554.0,0.353638]
[1725539059173,0.001,56554.0,56553.0,0.192455]
[1725539059395,0.001,56554.0,56553.0,0.01563]
[1725539059623,0.6559696,56564.0,56556.0,0.176814]
[1725539059840,0.176811,56558.0,56553.0,0.00163]
[1725539060057,0.176807,56559.0,56556.0,0.176815]
[1725539060291,0.3023856,56564.0,56554.0,0.353643]
[1725539060520,0.1768,56561.0,56557.0,0.176811]
[1725539060736,0.3023856,56564.0,56557.0,0.176811]
[1725539060737,0.176803,56560.0,56557.0,0.176811]
[1725539060956,0.00878015,56560.0,56557.0,0.176811]
[1725539061430,0.176801,56561.0,56557.0,0.176811]
[1725539061674,0.00877897,56559.0,56558.0,0.176809]
[1725539061941,0.353515,56575.0,56558.0,0.1695]
[1725539062170,0.00877897,56559.0,56558.0,0.346309]
[1725539062407,0.825595,56578.0,56558.0,0.6092856]
[1725539062408,0.6121,56578.0,56558.0,0.6092856]
[1725539062646,0.4721,56578.0,56564.0,0.3023856]
[1725539062907,0.3023856,56575.0,56558.0,0.3069]
[1725539063351,0.353525,56573.0,56567.0,0.176779]
[1725539063571,0.17677,56571.0,56567.0,0.176779]
[1725539063797,0.0088035,56572.0,56571.0,0.176769]
[1725539064014,0.4721,56578.0,56571.0,0.176769]
[1725539064015,0.014,56578.0,56571.0,0.353538]
[1725539064495,0.176751,56577.0,56573.0,0.176762]
[1725539064755,0.17675,56577.0,56573.0,0.176761]
[1725539064982,0.176753,56576.0,56570.0,0.35354]
[1725539065216,0.17675,56577.0,56573.0,0.176761]
[1725539065733,0.176746,56579.0,56571.0,0.353536]
[1725539065960,0.176746,56579.0,56574.0,0.176758]
[1725539066185,0.353488,56579.0,56574.0,0.176758]
[1725539066432,0.354291,56581.0,56572.0,0.176763]
[1725539066433,0.176753,56576.0,56572.0,0.176763]
[1725539066671,0.53026,56575.0,56573.0,0.177761]
[1725539066898,0.53906468,56575.0,56573.0,0.001]
[1725539067147,0.71582168,56575.0,56571.0,0.176767]
[1725539067396,0.53906468,56575.0,56574.0,0.001]
[1725539067644,0.53906468,56575.0,56570.0,0.35354]
[1725539067645,0.71582168,56575.0,56570.0,0.35354]
[1725539067866,0.71582168,56575.0,56571.0,0.176767]
[1725539068110,0.54306468,56575.0,56572.0,0.176764]
[1725539068349,0.54306468,56575.0,56567.0,0.35356]
[1725539068350,0.353521,56574.0,56567.0,0.17678]
[1725539068611,0.176771,56571.0,56567.0,0.17678]
[1725539068872,0.53026,56570.0,56567.0,0.353556]
[1725539069102,0.53907533,56570.0,56569.0,0.530325]
[1725539070275,0.53907533,56570.0,56569.0,0.883875]
[1725539070558,0.54007533,56570.0,56569.0,1.245425]
[1725539070818,0.53126,56570.0,56569.0,1.778875]
[1725539071081,0.54007477,56570.0,56569.0,2.09048596]
[1725539072564,0.53907477,56570.0,56569.0,2.08248596]
[1725539072821,0.53907477,56570.0,56569.0,2.09348596]
[1725539073064,0.54007477,56570.0,56569.0,2.10148596]
[1725539073293,0.53907477,56570.0,56569.0,2.08048596]
[1725539073760,0.53126,56570.0,56569.0,2.10448596]
[1725539073991,0.53126,56570.0,56569.0,2.10248596]
[1725539075208,0.53126,56570.0,56569.0,2.12548596]
[1725539076134,0.53126,56570.0,56569.0,2.22548596]
[1725539076601,0.53126,56570.0,56569.0,2.57903596]
[1725539076829,0.35449,56570.0,56569.0,2.60232113]
[1725539077099,0.35449,56570.0,56569.0,2.60432113]
[1725539077359,0.33221812,56570.0,56569.0,2.61432113]
[1725539077847,0.15544812,56570.0,56569.0,2.61432113]
[1725539079035,0.15444812,56570.0,56569.0,2.51987156]
[1725539079260,0.15544812,56570.0,56569.0,2.51987156]
[1725539079503,0.15544812,56570.0,56569.0,2.50587156]
[1725539079756,0.15544812,56570.0,56569.0,2.51987156]
[1725539079985,0.15544812,56570.0,56569.0,2.53515604]
[1725539079986,0.15644812,56570.0,56569.0,2.53515604]
[1725539080220,0.15644812,56570.0,56569.0,2.88670604]
[1725539080461,0.15644812,56570.0,56569.0,2.53315604]
[1725539080921,0.15644812,56570.0,56569.0,2.53387156]
[1725539082841,0.15644812,56570.0,56569.0,1.71883596]
[1725539083843,0.15644812,56570.0,56569.0,1.443325]
[1725539084065,0.15644812,56570.0,56569.0,1.265425]
[1725539086790,0.15644812,56570.0,56569.0,0.911875]
[1725539087509,0.15644812,56570.0,56569.0,0.897875]
[1725539087740,0.1785,56578.0,56576.0,0.176751]
[1725539087741,0.02731771,56578.0,56576.0,0.176751]
[1725539087969,0.000815,56581.0,56569.0,0.014]
[1725539088214,1.1e-05,56577.0,56569.0,0.014]
[1725539088462,1.1e-05,56577.0,56576.0,0.176753]
[1725539088986,1.1e-05,56577.0,56576.0,0.530259]
[1725539088990,1.1e-05,56577.0,56576.0,0.883765]
[1725539089438,1.1e-05,56577.0,56576.0,0.530259]
[1725539089685,0.00066299,56581.0,56579.0,0.176741]
[1725539089909,0.00066299,56581.0,56576.0,0.907765]
[1725539089910,0.354519,56577.0,56576.0,0.907765]
[1725539090363,0.354519,56577.0,56576.0,0.554259]
[1725539090589,0.354519,56577.0,56576.0,0.540259]
[1725539090816,0.533119,56577.0,56576.0,0.01]
[1725539091040,0.7755089,56577.0,56576.0,0.01]
[1725539091292,0.709869,56577.0,56576.0,0.01]
[1725539091552,1.063369,56577.0,56576.0,0.01]
[1725539091799,0.354519,56577.0,56576.0,0.01]
[1725539092953,0.354519,56577.0,56576.0,0.024]
[1725539095365,0.7736589,56577.0,56576.0,0.024]
[1725539095588,2.1537589,56577.0,56576.0,0.024]
[1725539096060,2.5072589,56577.0,56576.0,0.024]
[1725539096289,2.5062589,56577.0,56576.0,0.014]
[1725539096573,1.237404,56570.0,56569.0,0.00163]
[1725539096825,2.5015569,56570.0,56569.0,0.00163]
[1725539097526,2.1480129,56570.0,56569.0,0.00163]
[1725539098246,2.33189307,56570.0,56569.0,0.00163]
[1725539098475,2.30889307,56570.0,56569.0,0.00163]
[1725539099198,3.01689307,56570.0,56569.0,0.00263]
[1725539099433,3.01889307,56570.0,56569.0,0.00263]
[1725539100124,3.04525667,56570.0,56569.0,0.00263]
[1725539100632,1.654991,56570.0,56569.0,0.00263]
[1725539100881,1.375991,56570.0,56569.0,0.00263]
[1725539101099,2.083079,56570.0,56569.0,0.00263]
[1725539101804,1.029535,56570.0,56569.0,0.00263]
[1725539102268,0.363519,56570.0,56569.0,0.00263]
[1725539103502,0.361519,56570.0,56569.0,0.00163]
[1725539103774,0.355519,56570.0,56569.0,0.00163]
[1725539104000,0.356519,56570.0,56569.0,0.00163]
[1725539104514,0.89740617,56570.0,56569.0,0.00163]
[1725539105673,0.89540617,56570.0,56569.0,0.00163]
[1725539106132,0.89740617,56570.0,56569.0,0.00563]
[1725539106360,0.89440617,56570.0,56569.0,0.00563]
[1725539106593,0.54086217,56570.0,56569.0,0.00163]
[1725539106839,0.54086217,56570.0,56569.0,0.01363]
[1725539107062,0.89440617,56570.0,56569.0,0.01363]
[1725539108406,1.24795017,56570.0,56569.0,0.01363]
[1725539109123,0.54086217,56570.0,56569.0,0.01363]
[1725539109810,0.89440617,56570.0,56569.0,0.01363]
[1725539110064,1.24795017,56570.0,56569.0,0.01363]
[1725539110363,1.60149417,56570.0,56569.0,0.01363]
[1725539110603,2.75798217,56570.0,56569.0,0.01363]
[1725539110824,2.39443817,56570.0,56569.0,0.01363]
[1725539111051,2.44678184,56570.0,56569.0,0.01363]
[1725539111527,3.07143817,56570.0,56569.0,0.01363]
[1725539111768,3.07143817,56570.0,56569.0,0.00463]
[1725539112262,3.07143817,56570.0,56569.0,0.00863]
[1725539112491,3.07143817,56570.0,56569.0,0.00563]
[1725539112950,3.07343817,56570.0,56569.0,0.00563]
[1725539113207,3.10643817,56570.0,56569.0,0.00563]
[1725539113454,3.12578184,56570.0,56569.0,0.00563]
[1725539113699,3.07343817,56570.0,56569.0,0.00563]
[1725539113925,2.01280617,56570.0,56569.0,0.00563]
[1725539114152,0.67776217,56570.0,56569.0,0.00563]
[1725539114374,1.73839417,56570.0,56569.0,0.00563]
[1725539115753,1.38485017,56570.0,56569.0,0.00563]
[1725539115978,1.24995017,56570.0,56569.0,0.00563]
[1725539116449,1.60349417,56570.0,56569.0,0.00563]
[1725539116695,2.05703817,56570.0,56569.0,0.00563]
[1725539116938,1.70349417,56570.0,56569.0,0.00563]
[1725539117398,0.99640617,56570.0,56569.0,0.00563]
[1725539117646,1.34995017,56570.0,56569.0,0.00563]
[1725539120101,1.59251093,56570.0,56569.0,0.00563]
[1725539120578,1.94605493,56570.0,56569.0,0.00563]
[1725539123392,2.41214393,56570.0,56569.0,0.00563]
[1725539123611,2.8623631,56570.0,56569.0,0.00563]
[1725539124085,2.8484131,56570.0,56569.0,0.00563]
[1725539124542,2.6876131,56570.0,56569.0,0.00563]
[1725539125708,2.5767741,56570.0,56569.0,0.00563]
[1725539126191,3.2767741,56570.0,56569.0,0.00563]
[1725539126932,2.8902301,56570.0,56569.0,0.00563]
[1725539127232,2.79355493,56570.0,56569.0,0.00563]
[1725539127441,0.54286217,56570.0,56569.0,0.00563]
[1725539127691,0.89640617,56570.0,56569.0,0.00563]
[1725539128648,0.54286217,56570.0,56569.0,0.00563]
[1725539128884,0.89640617,56570.0,56569.0,0.00563]
[1725539131483,1.24995017,56570.0,56569.0,0.00563]
[1725539131713,1.60349417,56570.0,56569.0,0.00563]
[1725539131961,1.6006478,56570.0,56569.0,0.00563]
[1725539132642,1.7866478,56570.0,56569.0,0.00563]
[1725539133357,1.88355728,56570.0,56569.0,0.00563]
[1725539133641,2.19447122,56570.0,56569.0,0.00563]
[1725539133888,3.39983476,56570.0,56569.0,0.00563]
[1725539134113,3.32141562,56570.0,56569.0,0.00563]
[1725539134578,4.12597447,56570.0,56569.0,0.00563]
[1725539134832,3.4627301,56570.0,56569.0,0.00563]
[1725539135143,3.3899301,56570.0,56569.0,0.00563]
[1725539135607,3.49448895,56570.0,56569.0,0.00563]
[1725539135852,3.34268895,56570.0,56569.0,0.00563]
[1725539136085,3.34068895,56570.0,56569.0,0.00563]
[1725539136803,3.2481301,56570.0,56569.0,0.00563]
[1725539137025,1.5912,56561.0,56553.0,0.00163]
[1725539137249,2.54958081,56561.0,56553.0,0.00163]
[1725539137496,2.452461,56561.0,56553.0,0.00163]
[1725539137950,2.53108854,56561.0,56553.0,0.00163]
[1725539138171,2.35558618,56561.0,56560.0,0.00963]
[1725539138633,2.1258872,56561.0,56560.0,0.00963]